[Event "Allsvenskan Div I 3 2023/2024: SS Manhem II - Majornas SS"]
[Site "Goteborgs schackcentrum, Vegatan 20, Gothenburg, Sweden"]
[Date "2024.02.04"]
[Round "1.6"]
[White "Herrman, Jan"]
[Black "Berg, Roy"]
[Result "0-1"]
[TimeControl "90 minutes for 40 moves + 30 minutes for the rest of the game + 30 seconds per move from move one."]
[WhiteFideId "1731882"]
[BlackFideId "1711458"]
[WhiteElo "1872"]
[BlackElo "1942"]

1. d4 {[%clk 01:30:43]} {[%emt 00:00:16]} d5 {[%clk 01:30:54]} {[%emt
00:00:07]} 2. Nf3 {[%clk 01:31:06]} {[%emt 00:00:07]} Nf6 {[%clk 01:31:16]}
{[%emt 00:00:07]} 3. Bg5 {[%clk 01:30:01]} {[%emt 00:01:34]} c6 {[%clk
01:29:10]} {[%emt 00:02:38]} 4. e3 {[%clk 01:30:05]} {[%emt 00:00:24]} Qb6
{[%clk 01:28:51]} {[%emt 00:00:51]} 5. Bxf6 {[%clk 01:27:35]} {[%emt 00:02:59]}
exf6 {[%clk 01:29:05]} {[%emt 00:00:17]} 6. b3 {[%clk 01:27:52]} {[%emt
00:00:13]} Be6 {[%clk 01:22:36]} {[%emt 00:06:58]} 7. Bd3 {[%clk 01:27:49]}
{[%emt 00:00:32]} Nd7 {[%clk 01:21:38]} {[%emt 00:01:29]} 8. O-O {[%clk
01:28:05]} {[%emt 00:00:14]} Be7 {[%clk 01:21:15]} {[%emt 00:00:54]} 9. Nbd2
{[%clk 01:27:50]} {[%emt 00:00:43]} f5 {[%clk 01:20:48]} {[%emt 00:00:58]} 10.
c4 {[%clk 01:26:36]} {[%emt 00:01:44]} O-O {[%clk 01:13:55]} {[%emt 00:07:23]}
11. Rc1 {[%clk 01:24:47]} {[%emt 00:02:19]} Nf6 {[%clk 01:08:28]} {[%emt
00:05:57]} 12. Qc2 {[%clk 01:21:16]} {[%emt 00:04:00]} Ne4 {[%clk 01:01:01]}
{[%emt 00:07:58]} 13. cxd5 {[%clk 01:19:22]} {[%emt 00:02:23]} cxd5 {[%clk
01:01:04]} {[%emt 00:00:27]} 14. Qc7 {[%clk 01:13:25]} {[%emt 00:06:26]} Bb4
{[%clk 00:38:13]} {[%emt 00:23:22]} 15. Nb1 {[%clk 01:09:54]} {[%emt 00:03:59]}
Rfc8 {[%clk 00:31:49]} {[%emt 00:06:55]} 16. Qxb6 {[%clk 01:09:49]} {[%emt
00:00:36]} axb6 {[%clk 00:32:14]} {[%emt 00:00:06]} 17. a4 {[%clk 01:10:04]}
{[%emt 00:00:15]} f6 {[%clk 00:32:22]} {[%emt 00:00:23]} 18. Rfd1 {[%clk
01:03:54]} {[%emt 00:06:39]} Kf8 {[%clk 00:32:09]} {[%emt 00:00:43]} 19. Kf1
{[%clk 01:04:07]} {[%emt 00:00:16]} Ke7 {[%clk 00:32:11]} {[%emt 00:00:28]} 20.
Ke2 {[%clk 01:01:45]} {[%emt 00:02:51]} Bd7 {[%clk 00:31:19]} {[%emt 00:01:23]}
21. Nfd2 {[%clk 00:57:06]} {[%emt 00:05:09]} Nd6 {[%clk 00:22:11]} {[%emt
00:09:38]} 22. f3 {[%clk 00:54:25]} {[%emt 00:03:10]} b5 {[%clk 00:22:01]}
{[%emt 00:00:41]} 23. Rxc8 {[%clk 00:53:21]} {[%emt 00:01:34]} Rxc8 {[%clk
00:22:10]} {[%emt 00:00:22]} 24. axb5 {[%clk 00:51:03]} {[%emt 00:02:47]} Nxb5
{[%clk 00:21:14]} {[%emt 00:01:27]} 25. g4 {[%clk 00:48:34]} {[%emt 00:02:57]}
fxg4 {[%clk 00:20:49]} {[%emt 00:00:55]} 26. Bxh7 {[%clk 00:48:19]} {[%emt
00:00:47]} Rh8 {[%clk 00:20:19]} {[%emt 00:00:59]} 27. Bc2 {[%clk 00:48:00]}
{[%emt 00:00:49]} Rxh2+ {[%clk 00:20:11]} {[%emt 00:00:39]} 28. Kd3 {[%clk
00:48:20]} {[%emt 00:00:10]} gxf3 {[%clk 00:16:43]} {[%emt 00:03:57]} 29. e4
{[%clk 00:46:51]} {[%emt 00:01:58]} g6 {[%clk 00:13:37]} {[%emt 00:03:38]} 30.
Ke3 {[%clk 00:45:54]} {[%emt 00:01:26]} Nc3 {[%clk 00:11:04]} {[%emt 00:03:04]}
31. Nxc3 {[%clk 00:44:59]} {[%emt 00:01:25]} Bxc3 {[%clk 00:11:28]} {[%emt
00:00:07]} 32. exd5 {[%clk 00:43:54]} {[%emt 00:01:35]} Re2+ {[%clk 00:09:03]}
{[%emt 00:02:54]} 33. Kd3 {[%clk 00:42:28]} {[%emt 00:01:56]} Bxd2 {[%clk
00:08:43]} {[%emt 00:00:51]} 34. Rxd2 {[%clk 00:42:37]} {[%emt 00:00:20]} Bf5+
{[%clk 00:08:44]} {[%emt 00:00:30]} 35. Kc3 {[%clk 00:42:55]} {[%emt 00:00:12]}
Rxd2 {[%clk 00:07:51]} {[%emt 00:01:22]} 0-1

[ePGN "0.1;DGT LiveChess/2.2.6"]

[Event "Allsvenskan Div I 3 2023/2024: SS Manhem II - Majornas SS"]
[Site "Goteborgs schackcentrum, Vegatan 20, Gothenburg, Sweden"]
[Date "2024.02.04"]
[Round "1.7"]
[White "Ozbek, Gorkem"]
[Black "Abrahamsson, Patrik"]
[Result "1-0"]
[TimeControl "90 minutes for 40 moves + 30 minutes for the rest of the game + 30 seconds per move from move one."]
[WhiteFideId "34568719"]
[BlackFideId "1716484"]
[WhiteElo "1745"]
[BlackElo "1932"]

1. e4 {[%clk 01:30:54]} {[%emt 00:00:05]} d5 {[%clk 01:30:46]} {[%emt
00:00:15]} 2. exd5 {[%clk 01:30:43]} {[%emt 00:00:40]} Nf6 {[%clk 01:31:02]}
{[%emt 00:00:14]} 3. Bb5+ {[%clk 01:30:20]} {[%emt 00:00:53]} Bd7 {[%clk
01:30:31]} {[%emt 00:01:00]} 4. Bc4 {[%clk 01:30:00]} {[%emt 00:00:50]} Bg4
{[%clk 01:30:12]} {[%emt 00:00:51]} 5. f3 {[%clk 01:28:53]} {[%emt 00:01:36]}
Bf5 {[%clk 01:30:24]} {[%emt 00:00:18]} 6. Nc3 {[%clk 01:25:43]} {[%emt
00:03:39]} c6 {[%clk 01:30:22]} {[%emt 00:00:33]} 7. Nge2 {[%clk 01:17:35]}
{[%emt 00:08:38]} cxd5 {[%clk 01:28:06]} {[%emt 00:02:46]} 8. Bb5+ {[%clk
01:17:23]} {[%emt 00:00:42]} Bd7 {[%clk 01:26:27]} {[%emt 00:02:09]} 9. Bxd7+
{[%clk 01:12:42]} {[%emt 00:05:11]} Qxd7 {[%clk 01:21:43]} {[%emt 00:05:15]} 10.
d4 {[%clk 01:12:11]} {[%emt 00:01:00]} Nc6 {[%clk 01:18:39]} {[%emt 00:03:34]}
11. Bf4 {[%clk 01:06:03]} {[%emt 00:06:38]} e6 {[%clk 01:14:51]} {[%emt
00:04:18]} 12. O-O {[%clk 01:01:41]} {[%emt 00:04:51]} Rc8 {[%clk 01:10:01]}
{[%emt 00:05:19]} 13. Kh1 {[%clk 00:57:47]} {[%emt 00:04:26]} Na5 {[%clk
01:05:47]} {[%emt 00:04:43]} 14. Qd3 {[%clk 00:47:50]} {[%emt 00:10:26]} Nc4
{[%clk 00:54:31]} {[%emt 00:11:47]} 15. b3 {[%clk 00:40:03]} {[%emt 00:08:17]}
Nd6 {[%clk 00:52:24]} {[%emt 00:02:38]} 16. Na4 {[%clk 00:37:48]} {[%emt
00:02:44]} Be7 {[%clk 00:46:14]} {[%emt 00:06:39]} 17. Rfe1 {[%clk 00:30:21]}
{[%emt 00:07:58]} Rg8 {[%clk 00:32:15]} {[%emt 00:14:29]} 18. Be5 {[%clk
00:22:15]} {[%emt 00:08:36]} h5 {[%clk 00:25:26]} {[%emt 00:07:20]} 19. Nf4
{[%clk 00:21:00]} {[%emt 00:01:45]} Rh8 {[%clk 00:22:20]} {[%emt 00:03:36]} 20.
Nc5 {[%clk 00:19:37]} {[%emt 00:01:53]} Qb5 {[%clk 00:17:41]} {[%emt 00:05:08]}
21. Qd2 {[%clk 00:10:53]} {[%emt 00:09:15]} Nf5 {[%clk 00:13:47]} {[%emt
00:04:24]} 22. Ncd3 {[%clk 00:07:18]} {[%emt 00:04:04]} Qc6 {[%clk 00:09:20]}
{[%emt 00:04:57]} 23. c4 {[%clk 00:07:29]} {[%emt 00:00:19]} dxc4 {[%clk
00:05:29]} {[%emt 00:04:22]} 24. bxc4 {[%clk 00:07:51]} {[%emt 00:00:08]} Rd8
{[%clk 00:05:37]} {[%emt 00:00:21]} 25. d5 {[%clk 00:06:27]} {[%emt 00:01:55]}
exd5 {[%clk 00:03:50]} {[%emt 00:02:17]} 26. Bxf6 {[%clk 00:06:26]} {[%emt
00:00:30]} dxc4 {[%clk 00:02:44]} {[%emt 00:01:36]} 27. Bxe7 {[%clk 00:06:03]}
{[%emt 00:00:53]} Nxe7 {[%clk 00:02:03]} {[%emt 00:01:11]} 28. Qb4 {[%clk
00:05:53]} {[%emt 00:00:40]} Qd6 {[%clk 00:00:59]} {[%emt 00:01:35]} 29. Qxd6
{[%clk 00:03:51]} {[%emt 00:02:32]} Rxd6 {[%clk 00:01:23]} {[%emt 00:00:06]} 30.
Nf2 {[%clk 00:03:17]} {[%emt 00:01:03]} Rd4 {[%clk 00:00:40]} {[%emt 00:01:13]}
31. Re4 {[%clk 00:03:28]} {[%emt 00:00:19]} Rd2 {[%clk 00:01:04]} {[%emt
00:00:06]} 32. Rae1 {[%clk 00:03:04]} {[%emt 00:00:54]} Rxf2 {[%clk 00:01:24]}
{[%emt 00:00:10]} 33. Rxe7+ {[%clk 00:03:29]} Kd8 {[%clk 00:01:49]} {[%emt
00:00:10]} 34. Rxb7 {[%clk 00:03:40]} {[%emt 00:00:19]} Rh6 {[%clk 00:02:03]}
{[%emt 00:00:16]} 35. Rxf7 {[%clk 00:02:10]} {[%emt 00:01:59]} g5 {[%clk
00:02:06]} {[%emt 00:00:28]} 36. Nd5 {[%clk 00:01:53]} {[%emt 00:00:47]} Rxa2
{[%clk 00:02:06]} {[%emt 00:00:30]} 37. Nf6 {[%clk 00:02:12]} {[%emt 00:00:11]}
Rh8 {[%clk 00:02:07]} {[%emt 00:00:29]} 38. h4 {[%clk 00:01:51]} {[%emt
00:00:51]} g4 {[%clk 00:01:55]} {[%emt 00:00:41]} 39. Rb1 {[%clk 00:01:11]}
{[%emt 00:01:11]} Kc8 {[%clk 00:02:09]} {[%emt 00:00:16]} 40. Nd5 {[%clk
00:01:37]} {[%emt 00:00:04]} gxf3 {[%clk 00:01:31]} {[%emt 00:01:08]} 41. Rc7+
{[%clk 00:01:59]} {[%emt 00:00:08]} 1-0

[ePGN "0.1;DGT LiveChess/2.2.6"]

[Event "Allsvenskan Div I 3 2023/2024: SS Manhem II - Majornas SS"]
[Site "Goteborgs schackcentrum, Vegatan 20, Gothenburg, Sweden"]
[Date "2024.02.04"]
[Round "1.8"]
[White "Tobiasson, Bjorn"]
[Black "Simpson, Liam"]
[Result "1-0"]
[TimeControl "90 minutes for 40 moves + 30 minutes for the rest of the game + 30 seconds per move from move one."]
[WhiteFideId "1773682"]
[BlackFideId "1778048"]
[WhiteElo "1803"]
[BlackElo "1726"]

1. d4 {[%clk 01:30:54]} {[%emt 00:00:06]} Nf6 {[%clk 01:30:42]} {[%emt
00:00:17]} 2. Bg5 {[%clk 01:31:09]} {[%emt 00:00:16]} Ne4 {[%clk 01:29:31]}
{[%emt 00:01:40]} 3. Bf4 {[%clk 01:29:33]} {[%emt 00:02:07]} c5 {[%clk
01:29:22]} {[%emt 00:00:39]} 4. f3 {[%clk 01:29:49]} {[%emt 00:00:13]} Qa5+
{[%clk 01:29:43]} {[%emt 00:00:10]} 5. c3 {[%clk 01:30:09]} {[%emt 00:00:11]}
Nf6 {[%clk 01:29:02]} {[%emt 00:01:09]} 6. Nd2 {[%clk 01:29:59]} {[%emt
00:00:40]} cxd4 {[%clk 01:26:28]} {[%emt 00:03:04]} 7. Nb3 {[%clk 01:29:57]}
{[%emt 00:00:33]} Qb6 {[%clk 01:18:42]} {[%emt 00:08:14]} 8. Qxd4 {[%clk
01:30:12]} {[%emt 00:00:16]} d5 {[%clk 01:14:42]} {[%emt 00:04:31]} 9. Qxb6
{[%clk 01:19:15]} {[%emt 00:11:27]} axb6 {[%clk 01:15:02]} {[%emt 00:00:10]} 10.
e3 {[%clk 01:18:46]} {[%emt 00:00:58]} Nc6 {[%clk 01:13:48]} {[%emt 00:01:44]}
11. Bc7 {[%clk 01:09:08]} {[%emt 00:10:09]} Nd7 {[%clk 01:01:28]} {[%emt
00:12:51]} 12. Bb5 {[%clk 00:57:23]} {[%emt 00:12:14]} e6 {[%clk 00:54:16]}
{[%emt 00:07:42]} 13. Ne2 {[%clk 00:55:59]} {[%emt 00:01:53]} Be7 {[%clk
00:53:49]} {[%emt 00:00:57]} 14. Kf2 {[%clk 00:52:35]} {[%emt 00:03:54]} O-O
{[%clk 00:53:24]} {[%emt 00:00:55]} 15. Ned4 {[%clk 00:49:36]} {[%emt
00:03:30]} Nxd4 {[%clk 00:50:23]} {[%emt 00:03:32]} 16. cxd4 {[%clk 00:49:36]}
{[%emt 00:00:29]} Bd8 {[%clk 00:50:05]} {[%emt 00:00:48]} 17. Bd6 {[%clk
00:47:28]} {[%emt 00:02:38]} Re8 {[%clk 00:50:24]} {[%emt 00:00:11]} 18. Rhc1
{[%clk 00:47:08]} {[%emt 00:00:50]} Be7 {[%clk 00:48:24]} {[%emt 00:02:30]} 19.
Bxe7 {[%clk 00:36:08]} {[%emt 00:11:30]} Rxe7 {[%clk 00:47:44]} {[%emt
00:01:10]} 20. Rc7 {[%clk 00:35:30]} {[%emt 00:01:07]} f5 {[%clk 00:40:41]}
{[%emt 00:07:34]} 21. Rac1 {[%clk 00:33:22]} {[%emt 00:02:38]} Re8 {[%clk
00:31:26]} {[%emt 00:09:45]} 22. Bxd7 {[%clk 00:32:48]} {[%emt 00:01:04]} Bxd7
{[%clk 00:31:44]} {[%emt 00:00:12]} 23. Rxd7 {[%clk 00:33:12]} {[%emt
00:00:05]} Rxa2 {[%clk 00:32:09]} {[%emt 00:00:05]} 24. Rc2 {[%clk 00:32:59]}
{[%emt 00:00:43]} 1-0